bitfinex/quotes_SOLUSD_20230110
["timestamp","ask_amount","ask_price","bid_price","bid_amount"]
[1673372423040,20.0,16.298,16.287,1.92]
[1673372423348,20.0,16.295,16.287,1.92]
[1673372423666,20.0,16.295,16.287,9.04333417]
[1673372423871,20.0,16.295,16.288,17.0]
[1673372424191,20.0,16.298,16.288,17.0]
[1673372424378,20.0,16.295,16.288,17.0]
[1673372424591,20.0,16.298,16.288,17.0]
[1673372425041,20.0,16.298,16.285,80.17001176]
[1673372425442,20.0,16.298,16.282,51.35480558]
[1673372425667,20.0,16.295,16.282,51.35480558]
[1673372426931,20.0,16.295,16.283,17.0]
[1673372428276,20.0,16.295,16.282,51.35480558]
[1673372429650,20.0,16.295,16.283,9.04333417]
[1673372429863,20.0,16.295,16.282,51.35480558]
[1673372432709,20.0,16.295,16.282,60.39813975]
[1673372433428,20.0,16.295,16.283,46.07]
[1673372433749,20.0,16.295,16.283,55.11333417]
[1673372434706,20.0,16.295,16.284,21.92]
[1673372435229,20.0,16.295,16.284,30.96333417]
[1673372435433,20.0,16.295,16.284,10.96333417]
[1673372435651,20.0,16.295,16.284,9.04333417]
[1673372436576,111.4682211,16.296,16.284,9.04333417]
[1673372436781,111.4682211,16.296,16.285,0.96]
[1673372437010,111.4682211,16.296,16.286,20.0]
[1673372437223,111.4682211,16.296,16.287,1.92]
[1673372437435,111.4682211,16.296,16.287,159.50481734]
[1673372437643,111.4682211,16.296,16.288,80.39813975]
[1673372437858,111.4682211,16.296,16.288,60.39813975]
[1673372439623,111.4682211,16.296,16.288,51.35480558]
[1673372440986,111.4682211,16.296,16.289,10.96333417]
[1673372441307,111.4682211,16.296,16.29,9.04333417]
[1673372441510,111.4682211,16.296,16.29,34.62333417]
[1673372441721,111.4682211,16.296,16.292,20.0]
[1673372441949,111.4682211,16.296,16.293,17.0]
[1673372442143,111.4682211,16.296,16.291,158.38433696]
[1673372443194,111.4682211,16.296,16.291,149.34100279]
[1673372443419,111.4682211,16.296,16.293,20.0]
[1673372443747,111.4682211,16.296,16.294,9.04333417]
[1673372443970,111.4682211,16.296,16.295,0.96]
[1673372444154,111.4682211,16.296,16.294,0.96]
[1673372444363,111.4682211,16.296,16.293,46.04]
[1673372444591,111.4682211,16.296,16.292,104.25100279]
[1673372444810,111.4682211,16.296,16.293,0.96]
[1673372445002,111.4682211,16.296,16.292,104.25100279]
[1673372445215,111.4682211,16.296,16.293,9.04333417]
[1673372445428,111.4682211,16.296,16.292,103.29100279]
[1673372445836,111.4682211,16.296,16.293,17.0]
[1673372446272,111.4682211,16.296,16.294,0.96]
[1673372446484,111.4682211,16.296,16.294,1.92]
[1673372448679,111.4682211,16.296,16.293,17.0]
[1673372448892,111.4682211,16.296,16.293,37.0]
[1673372449741,111.4682211,16.296,16.293,17.0]
[1673372450059,111.4682211,16.296,16.293,37.0]
[1673372450266,111.4682211,16.296,16.294,10.00333417]
[1673372450469,111.4682211,16.296,16.294,10.96333417]
[1673372450681,111.4682211,16.296,16.294,1.92]
[1673372450896,111.4682211,16.296,16.294,18.92]
[1673372452691,111.4682211,16.296,16.294,75.03063892]
[1673372453293,111.4682211,16.296,16.294,56.11063892]
[1673372453509,20.0,16.295,16.283,62.25]
[1673372453719,20.0,16.295,16.284,20.0]
[1673372454052,20.0,16.295,16.284,29.04333417]
[1673372454909,20.0,16.295,16.285,18.92]
[1673372455330,111.4682211,16.296,16.285,18.92]
[1673372455542,20.0,16.295,16.287,20.0]
[1673372456069,20.0,16.295,16.286,20.0]
[1673372457226,20.0,16.295,16.285,51.65753225]
[1673372457857,20.0,16.295,16.286,20.0]
[1673372458383,20.0,16.295,16.287,17.0]
[1673372460167,111.4682211,16.296,16.287,17.0]
[1673372460386,20.0,16.295,16.287,17.0]
[1673372461310,20.0,16.295,16.286,17.0]
[1673372462081,20.0,16.295,16.286,37.0]
[1673372462253,20.0,16.295,16.285,51.65753225]
[1673372462458,20.0,16.295,16.283,46.07]
[1673372462691,20.0,16.295,16.282,66.08]
[1673372462878,20.0,16.295,16.282,20.0]
[1673372463090,20.0,16.295,16.283,9.04333417]
[1673372463419,111.4682211,16.296,16.284,123.95296279]
[1673372463612,111.4682211,16.296,16.284,131.03872279]
[1673372463821,111.4682211,16.296,16.286,20.0]
[1673372464040,111.4682211,16.296,16.287,1.92]
[1673372464267,111.4682211,16.296,16.288,20.0]
[1673372464472,111.4682211,16.296,16.289,18.92]
[1673372465743,111.4682211,16.296,16.289,1.92]
[1673372465951,111.4682211,16.296,16.288,17.0]
[1673372466159,20.0,16.295,16.288,17.0]
[1673372466479,111.4682211,16.296,16.288,26.04333417]
[1673372466695,111.4682211,16.296,16.289,1.92]
[1673372470778,20.0,16.295,16.289,1.92]
[1673372471402,20.0,16.295,16.287,9.04333417]
[1673372471732,20.0,16.295,16.285,103.95296279]
[1673372471939,20.0,16.295,16.285,112.99629696]
[1673372472348,20.0,16.295,16.285,103.95296279]
[1673372473933,20.0,16.295,16.286,17.0]
[1673372478563,20.0,16.295,16.282,46.08]
[1673372478973,20.0,16.295,16.281,46.08]
[1673372479298,20.0,16.295,16.282,20.0]
[1673372479917,20.0,16.295,16.283,17.0]
[1673372480538,111.4682211,16.296,16.284,66.07]
[1673372480753,111.4682211,16.296,16.285,18.92]
[1673372481174,111.4682211,16.296,16.287,20.0]
[1673372481384,111.4682211,16.296,16.288,17.0]
[1673372482650,111.4682211,16.296,16.287,17.0]
[1673372484236,20.0,16.295,16.287,17.0]
[1673372486685,111.4682211,16.296,16.287,63.06]
[1673372486989,20.0,16.295,16.287,63.06]
[1673372487713,20.0,16.295,16.287,17.0]
[1673372487923,20.0,16.295,16.288,17.0]
[1673372490032,20.0,16.295,16.285,55.11333417]
[1673372490236,111.4682211,16.296,16.285,9.04333417]
[1673372490457,111.4682211,16.296,16.288,9.04333417]
[1673372490661,111.4682211,16.296,16.289,20.0]
[1673372491929,111.4682211,16.296,16.289,9.04333417]
[1673372492146,20.0,16.295,16.289,9.04333417]
[1673372492331,20.0,16.295,16.285,139.75262069]
[1673372493065,20.0,16.295,16.285,100.93696279]
[1673372493500,20.0,16.295,16.285,48.64153225]
[1673372493711,20.0,16.295,16.283,55.11333417]
[1673372493923,20.0,16.295,16.284,20.0]
[1673372494344,111.4682211,16.296,16.284,20.0]
[1673372494555,20.0,16.295,16.284,20.0]
[1673372494871,20.0,16.295,16.285,17.0]
[1673372498440,20.0,16.295,16.283,55.11333417]
[1673372498747,20.0,16.295,16.283,9.04333417]
[1673372499303,111.4682211,16.296,16.284,18.92]
[1673372499491,20.0,16.295,16.285,20.0]
[1673372500136,111.4682211,16.296,16.285,20.0]
[1673372501083,20.0,16.295,16.286,17.0]
[1673372501398,20.0,16.295,16.283,57.68486642]
[1673372501616,20.0,16.295,16.286,9.04333417]
[1673372501812,20.0,16.295,16.284,75.11333417]
[1673372502344,20.0,16.295,16.284,46.07]
[1673372502537,20.0,16.295,16.283,48.64153225]
[1673372502871,20.0,16.295,16.284,17.0]
[1673372512201,66.04,16.294,16.276,62.25]
[1673372512410,66.04,16.294,16.273,20.0]
[1673372512630,20.0,16.293,16.273,20.0]
[1673372512841,20.0,16.293,16.274,46.1]
[1673372513052,66.05,16.292,16.274,46.1]
[1673372513481,20.0,16.291,16.275,29.03055184]
[1673372513903,20.0,16.289,16.275,29.03055184]
[1673372514408,20.0,16.289,16.276,18.92]
[1673372517789,20.0,16.289,16.276,27.95055184]
[1673372518525,20.0,16.289,16.274,46.1]
[1673372518737,20.0,16.289,16.275,9.03055184]
[1673372519879,20.0,16.289,16.276,17.0]
[1673372520403,20.0,16.289,16.274,46.1]
[1673372521351,20.0,16.289,16.273,46.1]
[1673372521556,66.06,16.289,16.273,46.1]
[1673372522307,66.06,16.289,16.274,17.0]
[1673372522725,66.06,16.289,16.273,46.1]
[1673372523254,66.06,16.289,16.271,46.11]
[1673372523448,66.06,16.289,16.273,9.03055184]
[1673372524403,66.06,16.289,16.274,17.0]
[1673372525557,66.06,16.289,16.271,46.11]
[1673372525969,20.0,16.287,16.268,108.37]
[1673372526175,20.0,16.287,16.269,40.0]
[1673372526403,46.06,16.286,16.269,20.0]
[1673372526916,20.0,16.285,16.27,29.03055184]
[1673372527236,20.0,16.285,16.271,9.03055184]
[1673372527449,46.07,16.284,16.271,9.03055184]
[1673372529018,20.0,16.283,16.269,20.0]
[1673372529229,20.0,16.282,16.268,46.12]
[1673372529445,20.0,16.282,16.266,46.12]
[1673372529446,25.68,16.28,16.266,46.12]
[1673372529770,25.68,16.28,16.265,46.12]
[1673372529771,20.0,16.279,16.265,46.12]
[1673372529981,66.08,16.279,16.265,46.12]
[1673372530194,20.0,16.279,16.265,46.12]
[1673372531555,71.76,16.28,16.266,9.03055184]
[1673372531752,20.0,16.279,16.266,29.03055184]
[1673372533342,20.0,16.279,16.266,9.03055184]
[1673372533560,40.0,16.279,16.266,9.03055184]
[1673372534180,20.0,16.278,16.266,9.03055184]
[1673372534496,20.0,16.278,16.265,46.12]
[1673372534709,8.662,16.278,16.262,46.13]
[1673372534920,8.662,16.278,16.264,75.16055184]
[1673372535421,54.752,16.278,16.264,75.16055184]
[1673372535632,8.662,16.278,16.264,55.16055184]
[1673372536159,8.662,16.278,16.264,9.03055184]
[1673372536793,8.662,16.278,16.264,29.03055184]
[1673372537004,86.08,16.279,16.264,29.03055184]
[1673372537239,20.0,16.278,16.264,9.03055184]
[1673372539316,46.09,16.277,16.262,46.13]
[1673372539646,20.0,16.276,16.262,9.03055184]
[1673372539844,20.0,16.276,16.261,46.14]
[1673372540061,20.0,16.274,16.261,46.14]
[1673372540278,20.0,16.274,16.261,20.0]
[1673372540467,20.0,16.274,16.26,46.14]
[1673372540677,20.0,16.272,16.258,108.39]
[1673372540890,20.0,16.271,16.258,108.39]
[1673372541326,20.0,16.271,16.256,41.79313225]
[1673372541327,20.0,16.27,16.257,46.15]
[1673372541533,21.25018749,16.269,16.257,46.15]
[1673372541755,20.0,16.269,16.257,46.15]
[1673372542681,20.0,16.269,16.255,46.15]
[1673372542911,20.0,16.268,16.255,46.15]
[1673372543522,1.25702649,16.267,16.255,46.15]
[1673372543974,20.0,16.268,16.255,46.15]
[1673372544361,20.0,16.268,16.256,20.0]
[1673372544577,20.0,16.268,16.255,46.15]
[1673372544798,20.0,16.268,16.256,20.0]
[1673372545001,20.0,16.268,16.254,20.0]
[1673372545212,112.1151,16.267,16.254,20.0]
[1673372545420,112.1151,16.267,16.255,46.15]
[1673372545635,20.0,16.266,16.254,46.16]
[1673372546063,112.1151,16.267,16.254,46.16]
[1673372546381,112.1151,16.267,16.255,20.0]
[1673372546996,20.0,16.266,16.254,55.19055184]
[1673372547419,112.1151,16.267,16.254,55.19055184]
[1673372548169,20.0,16.266,16.254,55.19055184]
[1673372548504,20.0,16.266,16.254,29.03055184]
[1673372548691,20.0,16.266,16.254,9.03055184]
[1673372548895,20.0,16.266,16.254,54.19055184]
[1673372549521,20.0,16.266,16.254,8.03055184]
[1673372551318,20.0,16.266,16.252,108.41]
[1673372552051,112.1151,16.267,16.253,29.03055184]
[1673372552367,112.1151,16.267,16.254,0.96]
[1673372552691,112.1151,16.267,16.255,9.99055184]
[1673372553001,112.1151,16.267,16.256,83.21]
[1673372553198,46.08,16.279,16.26,25.57]
[1673372553402,215.1395,16.29,16.261,1.92]
[1673372553403,158.0506,16.282,16.261,1.92]
[1673372553611,111.9706,16.282,16.261,170.08653089]
[1673372553827,111.9706,16.282,16.262,96.72067605]
[1673372554239,111.9706,16.282,16.263,107.77067605]
[1673372554666,20.0,16.28,16.265,20.0]
[1673372554997,20.0,16.28,16.266,27.894697]
[1673372555194,20.0,16.28,16.266,74.014697]
[1673372555396,20.0,16.28,16.267,8.974697]
[1673372555632,40.0,16.28,16.268,0.96]
[1673372556574,20.0,16.279,16.268,17.96]
[1673372557207,20.0,16.279,16.268,17.0]
[1673372557519,40.0,16.28,16.268,25.974697]
[1673372557830,20.0,16.279,16.268,25.974697]
[1673372558697,20.0,16.279,16.264,46.13]
[1673372558989,46.09,16.278,16.261,107.64]
[1673372559389,20.0,16.277,16.261,107.64]
[1673372559855,20.0,16.277,16.262,20.0]
[1673372561007,20.0,16.277,16.263,17.0]
[1673372561217,46.09,16.278,16.263,17.0]
[1673372562045,20.0,16.277,16.263,17.0]
[1673372562682,46.09,16.278,16.264,20.0]
[1673372562880,46.09,16.278,16.264,28.974697]
[1673372563933,66.08,16.279,16.264,28.974697]
[1673372564263,66.08,16.279,16.265,8.974697]
[1673372564577,20.0,16.279,16.265,8.974697]
[1673372564784,20.0,16.279,16.266,17.0]
[1673372566989,46.09,16.278,16.266,17.0]
[1673372567207,20.0,16.277,16.266,17.0]
[1673372567940,20.0,16.277,16.263,8.974697]
[1673372568663,46.09,16.276,16.263,8.974697]
[1673372568884,20.0,16.275,16.263,8.974697]
[1673372569414,20.0,16.275,16.261,107.64]
[1673372569600,20.0,16.275,16.261,61.5]
[1673372570232,20.0,16.273,16.26,25.5]
[1673372570449,20.0,16.273,16.256,61.5]
[1673372570450,134.1253,16.272,16.258,46.14]
[1673372570659,20.0,16.271,16.258,46.14]
[1673372570870,20.0,16.27,16.258,46.14]
[1673372571311,20.0,16.27,16.258,55.114697]
[1673372571525,20.0,16.27,16.259,17.0]
[1673372573734,20.0,16.269,16.258,46.14]
[1673372573926,20.0,16.269,16.255,46.15]
[1673372574262,20.0,16.269,16.255,20.0]
[1673372574474,20.0,16.269,16.256,46.15]
[1673372575224,20.0,16.269,16.257,17.0]
[1673372575397,40.0,16.27,16.257,17.0]
[1673372575941,20.0,16.27,16.258,20.0]
[1673372576365,20.0,16.27,16.259,17.0]
[1673372577200,20.0,16.271,16.259,17.0]
[1673372577409,20.0,16.271,16.259,25.974697]
[1673372577600,66.1,16.274,16.26,20.0]
[1673372577815,256.92967315,16.318,16.26,20.0]
[1673372577816,113.411,16.281,16.261,1.92]
[1673372578037,119.7233,16.28,16.261,107.04887325]
[1673372578244,119.7233,16.28,16.262,72.104697]
[1673372578460,119.7233,16.28,16.263,1.92]
[1673372578658,119.7233,16.28,16.264,20.0]
[1673372578873,119.7233,16.28,16.265,1.92]
[1673372579084,20.0,16.279,16.265,69.66597905]
[1673372579301,20.0,16.279,16.266,46.12]
[1673372579511,20.0,16.279,16.268,20.0]
[1673372579932,20.0,16.279,16.269,17.0]
[1673372582471,20.0,16.279,16.27,17.0]
[1673372583189,20.0,16.278,16.27,17.0]
[1673372583526,20.0,16.278,16.265,0.96]
[1673372583708,20.0,16.278,16.265,47.08]
[1673372584891,20.0,16.278,16.266,17.0]
[1673372587195,20.0,16.278,16.265,0.96]
[1673372587515,20.0,16.278,16.265,17.96]
[1673372587705,20.0,16.278,16.265,17.0]
[1673372587910,46.09,16.277,16.265,17.0]
[1673372588124,46.09,16.277,16.252,114.4702]
[1673372588125,84.64825296,16.277,16.252,114.4702]
[1673372588355,25.74,16.27,16.252,114.4702]
[1673372588674,153.5094,16.269,16.253,66.16]
[1673372588881,199.6194,16.269,16.253,66.16]
[1673372589284,20.0,16.268,16.252,114.4702]
[1673372589505,20.0,16.268,16.251,46.16]
[1673372589722,46.12,16.267,16.25,107.67]
[1673372589925,20.0,16.266,16.251,20.0]
[1673372590451,20.0,16.266,16.25,107.67]
[1673372590666,20.0,16.264,16.25,61.5]
[1673372591188,20.0,16.264,16.249,61.5]
[1673372591400,20.0,16.264,16.25,81.5]
[1673372591933,20.0,16.264,16.251,20.0]
[1673372592122,20.0,16.264,16.25,81.5]
[1673372592856,20.0,16.264,16.251,17.0]
[1673372593616,20.0,16.264,16.25,81.5]
[1673372593827,20.0,16.264,16.25,20.0]
[1673372594250,20.0,16.262,16.249,46.17]
[1673372594463,20.0,16.26,16.248,46.17]
[1673372594666,20.0,16.259,16.244,46.18]
[1673372594861,20.0,16.259,16.245,37.96]
[1673372595297,20.0,16.259,16.246,46.18]
[1673372596023,20.0,16.259,16.247,17.0]
[1673372598449,20.0,16.259,16.248,46.17]
[1673372598647,20.0,16.259,16.249,17.0]
[1673372598859,20.0,16.259,16.247,17.0]
[1673372599084,20.0,16.261,16.247,17.0]
[1673372599401,20.0,16.26,16.247,17.0]
[1673372599825,20.0,16.259,16.247,17.0]
[1673372602136,20.0,16.26,16.248,20.0]
[1673372602439,20.0,16.26,16.249,17.0]
[1673372608029,132.1147,16.262,16.25,71.8]
[1673372608030,112.1147,16.262,16.25,71.8]
[1673372608238,112.1147,16.262,16.251,21.92]
[1673372608468,112.1147,16.262,16.252,17.0]
[1673372608649,116.2145,16.263,16.252,63.16]
[1673372610006,20.0,16.262,16.252,63.16]
[1673372610222,116.2145,16.263,16.253,20.96]
[1673372610433,116.2145,16.263,16.254,17.0]
[1673372610868,139.4659,16.267,16.255,0.96]
[1673372612363,119.4659,16.267,16.256,0.96]
[1673372612660,119.4659,16.267,16.257,0.96]
[1673372612849,119.4659,16.267,16.257,47.11]
[1673372613067,119.4659,16.267,16.257,0.96]
[1673372616133,20.0,16.269,16.257,0.96]
[1673372616334,20.0,16.27,16.257,0.96]
[1673372616335,160.9478,16.277,16.26,25.74]
[1673372616532,160.9478,16.277,16.261,0.96]
[1673372616742,114.8578,16.277,16.262,0.96]
[1673372616971,114.8578,16.277,16.263,0.96]
[1673372617160,114.8578,16.277,16.264,20.96]
[1673372617366,114.8578,16.277,16.265,0.96]
[1673372617576,114.8578,16.277,16.266,0.96]
[1673372618106,114.8578,16.277,16.266,20.96]
[1673372618335,114.8578,16.277,16.267,17.0]
[1673372619921,114.8578,16.277,16.268,17.0]
[1673372620343,114.8578,16.277,16.269,17.0]
[1673372629712,113.411,16.281,16.269,17.0]
[1673372629922,20.0,16.279,16.269,17.0]
[1673372630654,159.491,16.281,16.269,17.0]
[1673372630870,20.0,16.279,16.269,17.0]
[1673372631485,159.491,16.281,16.27,8.974697]
[1673372631806,113.411,16.281,16.268,28.974697]
[1673372632013,113.411,16.281,16.27,20.0]
[1673372632224,113.411,16.281,16.271,17.0]
[1673372634425,20.0,16.28,16.272,17.0]
[1673372634637,113.411,16.281,16.272,17.0]
[1673372636316,113.411,16.281,16.273,0.96]
[1673372641270,110.411,16.281,16.273,0.96]
[1673372648201,46.06,16.286,16.273,29.934697]
[1673372648404,114.1076,16.289,16.274,122.56]
[1673372648729,46.06,16.289,16.276,20.0]
[1673372648929,115.3117,16.29,16.277,18.92]
[1673372649140,115.3117,16.29,16.278,20.0]
[1673372649352,115.3117,16.29,16.279,21.92]
[1673372649562,115.3117,16.29,16.28,37.0]
[1673372651761,115.3117,16.29,16.281,20.0]
[1673372651973,115.3117,16.29,16.282,17.0]
[1673372655764,115.3117,16.29,16.283,20.96]
[1673372655973,115.3117,16.29,16.284,17.0]
[1673372656914,113.8117,16.29,16.284,17.0]
[1673372660917,113.8117,16.29,16.281,46.08]
[1673372661130,113.8117,16.29,16.274,20.0]
[1673372661131,40.0,16.289,16.274,20.0]
[1673372661452,86.06,16.289,16.274,20.0]
[1673372661982,86.06,16.289,16.274,66.1]
[1673372662382,86.06,16.289,16.277,17.0]
[1673372663344,86.06,16.289,16.274,66.1]
[1673372664500,113.8117,16.29,16.274,66.1]
[1673372664501,113.8117,16.29,16.28,25.7]
[1673372664813,113.8117,16.29,16.282,20.0]
[1673372665327,113.8117,16.29,16.283,17.0]
[1673372667550,113.8117,16.29,16.281,46.08]
[1673372669018,113.8117,16.29,16.282,1.92]
[1673372670594,20.0,16.289,16.282,1.92]
[1673372671437,113.8117,16.29,16.282,1.92]
[1673372675010,113.8117,16.29,16.283,46.07]
[1673372677090,113.8117,16.29,16.282,1.92]
[1673372677305,20.0,16.289,16.282,0.96]
[1673372678693,113.8117,16.29,16.282,0.96]
[1673372678898,113.8117,16.29,16.276,93.40762108]
[1673372679121,113.8117,16.29,16.27,128.47]
[1673372679122,20.0,16.289,16.272,88.9012]
[1673372679307,20.0,16.288,16.272,88.9012]
[1673372679522,20.0,16.288,16.273,20.0]
[1673372680078,46.06,16.287,16.273,20.0]
[1673372680264,20.0,16.286,16.274,0.96]
[1673372680482,20.0,16.286,16.274,1.92]
[1673372682367,20.0,16.286,16.275,20.0]
[1673372682578,20.0,16.286,16.276,1.92]
[1673372683424,20.0,16.286,16.271,119.5482]
[1673372683628,20.0,16.286,16.272,20.0]
[1673372684139,20.0,16.286,16.272,66.1]
[1673372685521,20.0,16.287,16.273,1.92]
[1673372685832,180.3413,16.288,16.273,1.92]
[1673372686260,180.3413,16.288,16.272,66.1]
[1673372687852,180.3413,16.288,16.273,1.92]
[1673372688457,180.3413,16.288,16.273,18.92]
[1673372688888,46.06,16.288,16.273,18.92]
[1673372689101,113.8117,16.29,16.28,25.7]
[1673372689298,113.8117,16.29,16.281,1.92]
[1673372689503,113.8117,16.29,16.281,65.0]
[1673372689712,113.8117,16.29,16.282,20.0]
[1673372689924,113.8117,16.29,16.283,17.96]
[1673372690133,113.8117,16.29,16.283,64.03]
[1673372692129,113.8117,16.29,16.283,63.07]
[1673372692350,113.8117,16.29,16.283,17.0]
[1673372692561,20.0,16.289,16.283,17.0]
[1673372696644,113.8117,16.29,16.283,17.0]
[1673372697499,113.8117,16.29,16.281,20.0]
[1673372697712,113.8117,16.29,16.282,47.04]
[1673372698546,113.8117,16.29,16.282,46.08]
[1673372699193,113.8117,16.29,16.262,108.93804744]
[1673372699194,86.06,16.289,16.267,108.8226]
[1673372699413,20.0,16.288,16.268,20.0]
[1673372699602,20.0,16.288,16.271,20.0]
[1673372699814,20.0,16.286,16.271,20.0]
[1673372700017,46.06,16.287,16.271,173.37069176]
[1673372700230,46.06,16.287,16.272,8.974697]
[1673372700445,20.0,16.288,16.272,8.974697]
[1673372700666,20.0,16.288,16.274,20.0]
[1673372700885,20.0,16.288,16.275,1.92]
[1673372701074,40.0,16.289,16.276,20.0]
[1673372701283,40.0,16.289,16.277,1.92]
[1673372702548,20.0,16.289,16.277,1.92]
[1673372702969,40.0,16.289,16.277,1.92]
[1673372703301,20.0,16.289,16.277,1.92]
[1673372703605,113.8117,16.29,16.28,25.63]
[1673372703826,113.8117,16.29,16.281,1.92]
[1673372704015,113.8117,16.29,16.281,48.0]
[1673372704770,113.8117,16.29,16.281,47.04]
[1673372704972,113.8117,16.29,16.263,67.53250849]
[1673372704973,113.8117,16.29,16.272,87.5052]
[1673372705291,20.0,16.288,16.271,45.76069176]
[1673372705689,20.0,16.288,16.272,46.1]
[1673372705899,46.06,16.287,16.272,46.1]
[1673372706129,20.0,16.286,16.273,20.0]
[1673372706551,158.2673,16.288,16.274,46.1]
[1673372706858,112.2073,16.288,16.275,65.76069176]
[1673372707072,113.8117,16.29,16.275,74.73538876]
[1673372707289,113.8117,16.29,16.277,20.0]
[1673372707474,113.8117,16.29,16.278,1.92]
[1673372707682,113.8117,16.29,16.278,56.984697]
[1673372707917,113.8117,16.29,16.279,20.0]
[1673372708127,113.8117,16.29,16.28,1.92]
[1673372708324,113.8117,16.29,16.28,48.0]
[1673372709916,113.8117,16.29,16.281,17.0]
[1673372710147,113.8117,16.29,16.282,0.96]
[1673372710439,113.8117,16.29,16.282,47.04]
[1673372710966,113.8117,16.29,16.283,17.0]
[1673372711154,113.8117,16.29,16.282,0.96]
[1673372712107,20.0,16.289,16.279,66.08]
[1673372712324,20.0,16.289,16.277,45.76069176]
[1673372712648,20.0,16.289,16.272,20.0]
[1673372712852,20.0,16.289,16.271,162.49439176]
[1673372712853,165.1254,16.288,16.271,162.49439176]
[1673372713066,20.0,16.287,16.272,46.1]
[1673372713692,20.0,16.285,16.273,20.0]
[1673372713912,20.0,16.285,16.272,46.1]
[1673372714114,20.0,16.285,16.273,20.0]
[1673372714522,46.06,16.286,16.273,20.0]
[1673372714732,66.06,16.287,16.272,66.1]
[1673372714961,66.06,16.287,16.273,20.0]
[1673372715359,66.06,16.287,16.274,1.92]
[1673372715896,66.06,16.287,16.274,18.92]
[1673372716642,46.06,16.287,16.274,18.92]
[1673372716954,119.0654,16.288,16.275,20.0]
[1673372717175,119.0654,16.288,16.276,1.92]
[1673372718113,119.0654,16.288,16.276,48.01]
[1673372718318,119.0654,16.288,16.276,47.05]
[1673372718543,119.0654,16.288,16.271,162.49439176]
[1673372718760,20.0,16.287,16.271,162.49439176]
[1673372719073,20.0,16.287,16.265,61.5]
[1673372719269,20.0,16.285,16.271,20.0]
[1673372721068,46.06,16.286,16.271,20.0]
[1673372721269,46.06,16.286,16.272,0.96]
[1673372721483,119.0654,16.288,16.273,20.0]
[1673372721484,46.06,16.287,16.273,20.0]
[1673372721806,46.06,16.287,16.274,1.92]
[1673372722009,119.0654,16.288,16.274,18.92]
[1673372722429,119.0654,16.288,16.275,20.0]
[1673372722850,119.0654,16.288,16.276,17.0]
[1673372723276,20.0,16.287,16.274,48.02]
[1673372723492,20.0,16.287,16.275,17.0]
[1673372724755,119.0654,16.288,16.275,17.0]